fUST/lending_fUST_20260618
["ID","MTS","AMOUNT","RATE_DAILY","PERIOD"]
[425372394,1781731847000,-500.0,0.00021,2]
[425372392,1781731847000,-3371.151443,0.00021,2]
[425372397,1781731847000,-500.0,0.00021095,2]
[425372387,1781731847000,-500.0,0.00020821,2]
[425372389,1781731847000,-1192.14,0.00020821,2]
[425372390,1781731847000,-837.16,0.00020821,2]
[425372396,1781731847000,-500.0,0.00021095,2]
[425372383,1781731847000,-756.29,0.00020821,2]
[425372434,1781731847000,-500.0,0.00021369,2]
[425372406,1781731847000,-610.72,0.00021095,2]
[425372437,1781731847000,-500.0,0.00021369,2]
[425372431,1781731847000,-326.8661211,0.00021288,2]
[425372422,1781731847000,-837.16,0.00021095,2]
[425372439,1781731847000,-538.14,0.00021369,2]
[425372492,1781731847000,-455.82,0.00021454,2]
[425372485,1781731847000,-181.67388,0.00018491,2]
[425372489,1781731847000,-1000.0,0.000195,2]
[425372482,1781731847000,-1000.0,0.000175,2]
[425372488,1781731847000,-205.004328,0.00019416,2]
[425372486,1781731847000,-1000.0,0.000185,2]
[425372481,1781731847000,-1001.918445,0.00017,2]
[425372483,1781731847000,-1000.0,0.00018,2]
[425372484,1781731847000,-170.83694,0.00018491,2]
[425372491,1781731847000,-119937.44587246,0.00021454,2]
[425372490,1781731847000,-1000.0,0.0002,2]
[425372468,1781731847000,-460968.26207194,0.00021454,2]
[425372487,1781731847000,-1000.0,0.00019,2]
[425372466,1781731847000,-837.16,0.00021369,2]
[425372451,1781731847000,-721.92,0.00021369,2]
[425372464,1781731847000,-1192.14,0.00021369,2]
[425372458,1781731847000,-756.29,0.00021369,2]
[425372453,1781731847000,-786.81,0.00021369,2]
[425372456,1781731847000,-789.98,0.00021369,2]
[425372460,1781731847000,-678.82,0.00021369,2]
[425372442,1781731847000,-500.0,0.00021369,2]
[425372446,1781731847000,-500.0,0.00021369,2]
[425372449,1781731847000,-610.72,0.00021369,2]
[425372444,1781731847000,-4413.82,0.00021369,2]
[425372462,1781731847000,-500.0,0.00021369,2]
[425372649,1781733033000,-500.0,0.00016438,2]
[425372641,1781733033000,-500.0,0.00015637,2]
[425372646,1781733033000,-160.0,0.00015947,2]
[425372658,1781733033000,-500.0,0.00016438,2]
[425372648,1781733033000,-500.0,0.00016438,2]
[425372638,1781733033000,-500.0,0.00015637,2]
[425372647,1781733033000,-160.0,0.00015947,2]
[425372657,1781733033000,-500.0,0.00016438,2]
[425372651,1781733033000,-1453.42,0.00016438,2]
[425372652,1781733033000,-500.0,0.00016438,2]
[425372653,1781733033000,-500.0,0.00016438,2]
[425372655,1781733033000,-500.0,0.00016438,2]
[425372656,1781733033000,-500.0,0.00016438,2]
[425372654,1781733033000,-500.0,0.00016438,2]
[425372640,1781733033000,-500.0,0.00015637,2]
[425372650,1781733033000,-304.97628618,0.00016438,2]
[425372642,1781733033000,-500.0,0.00015637,2]
[425372628,1781733033000,-1091.07779986,0.00015438,2]
[425372639,1781733033000,-500.0,0.00015637,2]
[425372659,1781733033000,-500.0,0.00016438,2]
[425372625,1781733033000,-238.32934221,0.0001458,2]
[425372627,1781733033000,-10946.95670413,0.00015438,2]
[425372626,1781733033000,-357.9773558,0.00014878,2]
[425372629,1781733033000,-896.24252406,0.00015438,2]
[425372630,1781733033000,-101.07969831,0.00015537,2]
[425372631,1781733033000,-398.92030169,0.00015537,2]
[425372632,1781733033000,-227.25745308,0.00015537,2]
[425372634,1781733033000,-1418.0,0.00015555,2]
[425372645,1781733033000,-600.0,0.00015848,2]
[425372636,1781733033000,-958.0,0.00015555,2]
[425372633,1781733033000,-970.91547704,0.00015555,2]
[425372644,1781733033000,-640.58071433,0.00015637,2]
[425372635,1781733033000,-1646.945,0.00015555,2]
[425372637,1781733033000,-500.0,0.00015637,2]
[425372643,1781733033000,-500.0,0.00015637,2]
[425372671,1781733033000,-500.0,0.00016438,2]
[425372696,1781733033000,-467.6132753,0.00016712,2]
[425372672,1781733033000,-500.0,0.00016438,2]
[425372682,1781733033000,-500.0,0.00016438,2]
[425372679,1781733033000,-500.0,0.00016438,2]
[425372680,1781733033000,-500.0,0.00016438,2]
[425372686,1781733033000,-500.0,0.00016438,2]
[425372688,1781733033000,-2602.54,0.00016438,2]
[425372687,1781733033000,-500.0,0.00016438,2]
[425372698,1781733033000,-437.28817379,0.00016712,2]
[425372689,1781733033000,-500.0,0.00016438,2]
[425372661,1781733033000,-500.0,0.00016438,2]
[425372693,1781733033000,-1453.42,0.00016712,2]
[425372692,1781733033000,-500.0,0.00016712,2]
[425372691,1781733033000,-500.0,0.00016712,2]
[425372695,1781733033000,-500.0,0.00016712,2]
[425372694,1781733033000,-500.0,0.00016712,2]
[425372697,1781733033000,-500.0,0.00016712,2]
[425372683,1781733033000,-500.0,0.00016438,2]
[425372684,1781733033000,-500.0,0.00016438,2]
[425372690,1781733033000,-235.4880464,0.00016438,2]
[425372678,1781733033000,-500.0,0.00016438,2]
[425372681,1781733033000,-500.0,0.00016438,2]
[425372660,1781733033000,-500.0,0.00016438,2]
[425372662,1781733033000,-500.0,0.00016438,2]
[425372663,1781733033000,-500.0,0.00016438,2]
[425372664,1781733033000,-500.0,0.00016438,2]
[425372670,1781733033000,-504.21,0.00016438,2]
[425372669,1781733033000,-500.0,0.00016438,2]
[425372668,1781733033000,-500.0,0.00016438,2]
[425372667,1781733033000,-500.0,0.00016438,2]
[425372665,1781733033000,-500.0,0.00016438,2]
[425372673,1781733033000,-500.0,0.00016438,2]
[425372675,1781733033000,-500.0,0.00016438,2]
[425372685,1781733033000,-500.0,0.00016438,2]
[425372674,1781733033000,-500.0,0.00016438,2]
[425372676,1781733033000,-500.0,0.00016438,2]
[425372666,1781733033000,-500.0,0.00016438,2]
[425372677,1781733033000,-711.98,0.00016438,2]
[425372711,1781733034000,-500.0,0.00016712,2]
[425372712,1781733034000,-500.0,0.00016712,2]
[425372715,1781733034000,-500.0,0.00016712,2]
[425372720,1781733034000,-711.98,0.00016712,2]
[425372714,1781733034000,-500.0,0.00016712,2]
[425372717,1781733034000,-454.30321067,0.00016712,2]
[425372710,1781733034000,-500.0,0.00016712,2]
[425372722,1781733034000,-500.0,0.00016712,2]
[425372719,1781733034000,-500.0,0.00016712,2]
[425372700,1781733034000,-577.18865682,0.00016712,2]
[425372708,1781733034000,-552.00727504,0.00016712,2]
[425372706,1781733034000,-500.0,0.00016712,2]
[425372707,1781733034000,-500.0,0.00016712,2]
[425372704,1781733034000,-500.0,0.00016712,2]
[425372702,1781733034000,-500.0,0.00016712,2]
[425372701,1781733034000,-500.0,0.00016712,2]
[425372703,1781733034000,-500.0,0.00016712,2]
[425372709,1781733034000,-500.0,0.00016712,2]
[425372699,1781733034000,-62.71182621,0.00016712,2]
[425372718,1781733034000,-500.0,0.00016712,2]
[425372705,1781733034000,-500.0,0.00016712,2]
[425372713,1781733034000,-504.21,0.00016712,2]
[425372723,1781733034000,-500.0,0.00016712,2]
[425372716,1781733034000,-500.0,0.00016712,2]
[425372721,1781733034000,-500.0,0.00016712,2]
[425372744,1781733034000,-159.87391932,0.00016986,2]
[425372740,1781733034000,-500.0,0.00016986,2]
[425372741,1781733034000,-500.0,0.00016986,2]
[425372742,1781733034000,-500.0,0.00016986,2]
[425372739,1781733034000,-500.0,0.00016986,2]
[425372737,1781733034000,-500.0,0.00016986,2]
[425372736,1781733034000,-500.0,0.00016986,2]
[425372730,1781733034000,-500.0,0.00016712,2]
[425372734,1781733034000,-1453.42,0.00016986,2]
[425372738,1781733034000,-500.0,0.00016986,2]
[425372732,1781733034000,-500.0,0.00016986,2]
[425372731,1781733034000,-2602.54,0.00016712,2]
[425372733,1781733034000,-500.0,0.00016986,2]
[425372728,1781733034000,-500.0,0.00016712,2]
[425372729,1781733034000,-500.0,0.00016712,2]
[425372726,1781733034000,-500.0,0.00016712,2]
[425372743,1781733034000,-500.0,0.00016986,2]
[425372727,1781733034000,-500.0,0.00016712,2]
[425372725,1781733034000,-500.0,0.00016712,2]
[425372735,1781733034000,-500.0,0.00016986,2]
[425372724,1781733034000,-500.0,0.00016712,2]
[425372796,1781733038000,-500.0,0.0001726,2]
[425372795,1781733038000,-500.0,0.0001726,2]
[425372789,1781733038000,-500.0,0.0001726,2]
[425372791,1781733038000,-500.0,0.0001726,2]
[425372782,1781733038000,-500.0,0.0001726,2]
[425372794,1781733038000,-500.0,0.0001726,2]
[425372787,1781733038000,-500.0,0.0001726,2]
[425372786,1781733038000,-500.0,0.0001726,2]
[425372799,1781733038000,-504.21,0.0001726,2]
[425372790,1781733038000,-500.0,0.0001726,2]
[425372788,1781733038000,-500.0,0.0001726,2]
[425372803,1781733038000,-500.0,0.0001726,2]
[425372797,1781733038000,-500.0,0.0001726,2]
[425372792,1781733038000,-500.0,0.0001726,2]
[425372800,1781733038000,-500.0,0.0001726,2]
[425372801,1781733038000,-500.0,0.0001726,2]
[425372811,1781733038000,-500.0,0.0001726,2]
[425372812,1781733038000,-555.04047076,0.0001726,2]
[425372802,1781733038000,-500.0,0.0001726,2]
[425372804,1781733038000,-711.98,0.0001726,2]
[425372807,1781733038000,-500.0,0.0001726,2]
[425372780,1781733038000,-2602.54,0.00016986,2]
[425372809,1781733038000,-500.0,0.0001726,2]
[425372798,1781733038000,-500.0,0.0001726,2]
[425372781,1781733038000,-203.539091,0.00017006,2]
[425372772,1781733038000,-500.0,0.00016986,2]
[425372778,1781733038000,-500.0,0.00016986,2]
[425372759,1781733038000,-322.68244661,0.00016986,2]
[425372757,1781733038000,-340.12608068,0.00016986,2]
[425372758,1781733038000,-500.0,0.00016986,2]
[425372760,1781733038000,-500.0,0.00016986,2]
[425372762,1781733038000,-500.0,0.00016986,2]
[425372761,1781733038000,-500.0,0.00016986,2]
[425372765,1781733038000,-500.0,0.00016986,2]
[425372764,1781733038000,-500.0,0.00016986,2]
[425372766,1781733038000,-434.55652129,0.00016986,2]
[425372767,1781733038000,-500.0,0.00016986,2]
[425372763,1781733038000,-504.21,0.00016986,2]
[425372776,1781733038000,-500.0,0.00016986,2]
[425372770,1781733038000,-500.0,0.00016986,2]
[425372768,1781733038000,-500.0,0.00016986,2]
[425372771,1781733038000,-500.0,0.00016986,2]
[425372806,1781733038000,-467.21184666,0.0001726,2]
[425372774,1781733038000,-500.0,0.00016986,2]
[425372784,1781733038000,-1453.42,0.0001726,2]
[425372785,1781733038000,-500.0,0.0001726,2]
[425372783,1781733038000,-500.0,0.0001726,2]
[425372773,1781733038000,-500.0,0.00016986,2]
[425372779,1781733038000,-500.0,0.00016986,2]
[425372777,1781733038000,-500.0,0.00016986,2]
[425372775,1781733038000,-500.0,0.00016986,2]
[425372769,1781733038000,-711.98,0.00016986,2]
[425372810,1781733038000,-500.0,0.0001726,2]
[425372793,1781733038000,-500.0,0.0001726,2]
[425372808,1781733038000,-500.0,0.0001726,2]
[425372841,1781733038000,-500.0,0.00017534,2]
[425372842,1781733038000,-500.0,0.00017534,2]
[425372847,1781733038000,-504.21,0.00017534,2]
[425372844,1781733038000,-500.0,0.00017534,2]
[425372845,1781733038000,-500.0,0.00017534,2]
[425372851,1781733038000,-500.0,0.00017534,2]
[425372846,1781733038000,-500.0,0.00017534,2]
[425372848,1781733038000,-500.0,0.00017534,2]
[425372843,1781733038000,-500.0,0.00017534,2]
[425372853,1781733038000,-500.0,0.00017534,2]
[425372849,1781733038000,-500.0,0.00017534,2]
[425372829,1781733038000,-720.0,0.00017433,2]
[425372850,1781733038000,-500.0,0.00017534,2]
[425372856,1781733038000,-454.05726656,0.00017534,2]
[425372855,1781733038000,-500.0,0.00017534,2]
[425372857,1781733038000,-500.0,0.00017534,2]
[425372862,1781733038000,-500.0,0.00017808,2]
[425372863,1781733038000,-1453.42,0.00017808,2]
[425372859,1781733038000,-500.0,0.00017534,2]
[425372864,1781733038000,-500.0,0.00017808,2]
[425372861,1781733038000,-500.0,0.00017808,2]
[425372860,1781733038000,-2602.54,0.00017534,2]
[425372858,1781733038000,-500.0,0.00017534,2]
[425372805,1781733038000,-290.95488179,0.0001726,2]
[425372854,1781733038000,-500.0,0.00017534,2]
[425372835,1781733038000,-500.0,0.00017534,2]
[425372852,1781733038000,-711.98,0.00017534,2]
[425372836,1781733038000,-500.0,0.00017534,2]
[425372813,1781733038000,-500.0,0.0001726,2]
[425372832,1781733038000,-1453.42,0.00017534,2]
[425372814,1781733038000,-500.0,0.0001726,2]
[425372821,1781733038000,-428.57779965,0.00017394,2]
[425372816,1781733038000,-166.93644307,0.00017394,2]
[425372823,1781733038000,-151.88488625,0.00017394,2]
[425372817,1781733038000,-316.57942554,0.00017394,2]
[425372818,1781733038000,-186.16234686,0.00017394,2]
[425372820,1781733038000,-176.19175897,0.00017394,2]
[425372826,1781733038000,-177.7891802,0.00017394,2]
[425372819,1781733038000,-174.10992665,0.00017394,2]
[425372822,1781733038000,-157.69446095,0.00017394,2]
[425372815,1781733038000,-2602.54,0.0001726,2]
[425372824,1781733038000,-157.03900363,0.00017394,2]
[425372839,1781733038000,-500.0,0.00017534,2]
[425372834,1781733038000,-500.0,0.00017534,2]
[425372838,1781733038000,-500.0,0.00017534,2]
[425372830,1781733038000,-500.0,0.00017534,2]
[425372837,1781733038000,-500.0,0.00017534,2]
[425372833,1781733038000,-500.0,0.00017534,2]
[425372831,1781733038000,-500.0,0.00017534,2]
[425372828,1781733038000,-180.24101705,0.00017394,2]
[425372827,1781733038000,-159.7241207,0.00017394,2]
[425372825,1781733038000,-156.42136711,0.00017394,2]
[425372840,1781733038000,-500.0,0.00017534,2]
[425372909,1781733039000,-500.0,0.00018082,2]
[425372907,1781733039000,-500.0,0.00018082,2]
[425372905,1781733039000,-500.0,0.00018082,2]
[425372901,1781733039000,-500.0,0.00018082,2]
[425372900,1781733039000,-500.0,0.00018082,2]
[425372899,1781733039000,-441.51743429,0.00018082,2]
[425372902,1781733039000,-500.0,0.00018082,2]
[425372898,1781733039000,-500.0,0.00018082,2]
[425372897,1781733039000,-500.0,0.00018082,2]
[425372904,1781733039000,-500.0,0.00018082,2]
[425372918,1781733039000,-500.0,0.00018082,2]
[425372903,1781733039000,-500.0,0.00018082,2]
[425372917,1781733039000,-500.0,0.00018082,2]
[425372922,1781733039000,-633.15885107,0.00018176,2]
[425372866,1781733039000,-500.0,0.00017808,2]
[425372910,1781733039000,-500.0,0.00018082,2]
[425372919,1781733039000,-500.0,0.00018082,2]
[425372911,1781733039000,-500.0,0.00018082,2]
[425372912,1781733039000,-500.0,0.00018082,2]
[425372914,1781733039000,-500.0,0.00018082,2]
[425372913,1781733039000,-711.98,0.00018082,2]
[425372915,1781733039000,-500.0,0.00018082,2]
[425372916,1781733039000,-500.0,0.00018082,2]
[425372920,1781733039000,-2602.54,0.00018082,2]
[425372925,1781733039000,-352.38351795,0.00018176,2]
[425372923,1781733039000,-372.32469372,0.00018176,2]
[425372895,1781733039000,-500.0,0.00018082,2]
[425372908,1781733039000,-504.21,0.00018082,2]
[425372896,1781733039000,-500.0,0.00018082,2]
[425372871,1781733039000,-500.0,0.00017808,2]
[425372906,1781733039000,-198.9504795,0.00018082,2]
[425372865,1781733039000,-190.79914137,0.00017808,2]
[425372868,1781733039000,-500.0,0.00017808,2]
[425372867,1781733039000,-500.0,0.00017808,2]
[425372870,1781733039000,-500.0,0.00017808,2]
[425372877,1781733039000,-500.0,0.00017808,2]
[425372878,1781733039000,-504.21,0.00017808,2]
[425372879,1781733039000,-500.0,0.00017808,2]
[425372869,1781733039000,-500.0,0.00017808,2]
[425372873,1781733039000,-500.0,0.00017808,2]
[425372872,1781733039000,-500.0,0.00017808,2]
[425372874,1781733039000,-500.0,0.00017808,2]
[425372876,1781733039000,-500.0,0.00017808,2]
[425372875,1781733039000,-500.0,0.00017808,2]
[425372921,1781733039000,-333.87288614,0.00018176,2]
[425372880,1781733039000,-500.0,0.00017808,2]
[425372893,1781733039000,-500.0,0.00018082,2]
[425372892,1781733039000,-500.0,0.00018082,2]
[425372881,1781733039000,-500.0,0.00017808,2]
[425372883,1781733039000,-711.98,0.00017808,2]
[425372886,1781733039000,-500.0,0.00017808,2]
[425372885,1781733039000,-500.0,0.00017808,2]
[425372884,1781733039000,-500.0,0.00017808,2]
[425372887,1781733039000,-500.0,0.00017808,2]
[425372888,1781733039000,-500.0,0.00017808,2]
[425372889,1781733039000,-500.0,0.00017808,2]
[425372890,1781733039000,-2602.54,0.00017808,2]
[425372891,1781733039000,-152.0,0.0001784,7]
[425372894,1781733039000,-1453.42,0.00018082,2]
[425372882,1781733039000,-500.0,0.00017808,2]
[425372932,1781733039000,-319.4482414,0.00018176,2]
[425372942,1781733039000,-500.0,0.00018356,2]
[425372926,1781733039000,-857.15559931,0.00018176,2]
[425372963,1781733039000,-2602.54,0.00018356,2]
[425372966,1781733039000,-500.0,0.0001863,2]
[425372964,1781733039000,-1001.918445,0.000184,2]
[425372973,1781733039000,-301.64685602,0.0001863,2]
[425372971,1781733039000,-500.0,0.0001863,2]
[425372972,1781733039000,-330.63056028,0.0001863,2]
[425372969,1781733039000,-500.0,0.0001863,2]
[425372965,1781733039000,-1418.0,0.00018555,2]
[425372968,1781733039000,-1453.42,0.0001863,2]
[425372970,1781733039000,-500.0,0.0001863,2]
[425372967,1781733039000,-424.14809245,0.0001863,2]
[425372974,1781733039000,-500.0,0.0001863,2]
[425372975,1781733039000,-500.0,0.0001863,2]
[425372962,1781733039000,-500.0,0.00018356,2]
[425372976,1781733039000,-500.0,0.0001863,2]
[425372977,1781733039000,-500.0,0.0001863,2]
[425372978,1781733039000,-500.0,0.0001863,2]
[425372980,1781733039000,-500.0,0.0001863,2]
[425372981,1781733039000,-500.0,0.0001863,2]
[425372982,1781733039000,-500.0,0.0001863,2]
[425372986,1781733039000,-500.0,0.0001863,2]
[425372985,1781733039000,-500.0,0.0001863,2]
[425372983,1781733039000,-164.31261717,0.0001863,2]
[425372984,1781733039000,-711.98,0.0001863,2]
[425372989,1781733039000,-500.0,0.0001863,2]
[425372987,1781733039000,-500.0,0.0001863,2]
[425372988,1781733039000,-500.0,0.0001863,2]
[425372924,1781733039000,-348.2198533,0.00018176,2]
[425372979,1781733039000,-504.21,0.0001863,2]
[425372961,1781733039000,-500.0,0.00018356,2]
[425372958,1781733039000,-500.0,0.00018356,2]
[425372956,1781733039000,-711.98,0.00018356,2]
[425372960,1781733039000,-500.0,0.00018356,2]
[425372927,1781733039000,-315.3889219,0.00018176,2]
[425372931,1781733039000,-355.5783604,0.00018176,2]
[425372928,1781733039000,-303.7697725,0.00018176,2]
[425372929,1781733039000,-314.07800726,0.00018176,2]
[425372933,1781733039000,-360.48203409,0.00018176,2]
[425372946,1781733039000,-500.0,0.00018356,2]
[425372934,1781733039000,-152.0,0.00018279,7]
[425372936,1781733039000,-500.0,0.00018356,2]
[425372938,1781733039000,-1453.42,0.00018356,2]
[425372941,1781733039000,-500.0,0.00018356,2]
[425372937,1781733039000,-500.0,0.00018356,2]
[425372943,1781733039000,-500.0,0.00018356,2]
[425372935,1781733039000,-1538.48120391,0.00018342,2]
[425372945,1781733039000,-500.0,0.00018356,2]
[425372940,1781733039000,-500.0,0.00018356,2]
[425372955,1781733039000,-500.0,0.00018356,2]
[425372953,1781733039000,-500.0,0.00018356,2]
[425372951,1781733039000,-504.21,0.00018356,2]
[425372952,1781733039000,-500.0,0.00018356,2]
[425372950,1781733039000,-500.0,0.00018356,2]
[425372957,1781733039000,-500.0,0.00018356,2]
[425372930,1781733039000,-312.84273422,0.00018176,2]
[425372948,1781733039000,-500.0,0.00018356,2]
[425372959,1781733039000,-500.0,0.00018356,2]
[425372949,1781733039000,-500.0,0.00018356,2]
[425372947,1781733039000,-248.7363268,0.00018356,2]
[425372939,1781733039000,-500.0,0.00018356,2]
[425372954,1781733039000,-500.0,0.00018356,2]
[425373040,1781733040000,-704.7670359,0.00019044,2]
[425373038,1781733040000,-225.07160224,0.00019044,2]
[425373037,1781733040000,-166.75259043,0.00019044,2]
[425373031,1781733040000,-500.0,0.00018904,2]
[425373032,1781733040000,-2602.54,0.00018904,2]
[425373036,1781733040000,-744.64938745,0.00019044,2]
[425373030,1781733040000,-500.0,0.00018904,2]
[425373028,1781733040000,-500.0,0.00018904,2]
[425373025,1781733040000,-711.98,0.00018904,2]
[425373034,1781733040000,-387.84790481,0.00019044,2]
[425373024,1781733040000,-500.0,0.00018904,2]
[425373033,1781733040000,-172.40145936,0.00019044,2]
[425373035,1781733040000,-1266.31770214,0.00019044,2]
[425373052,1781733040000,-432.12031855,0.00019044,2]
[425373039,1781733040000,-696.4397066,0.00019044,2]
[425373041,1781733040000,-1714.31119861,0.00019044,2]
[425373042,1781733040000,-226.67978725,0.00019044,2]
[425373048,1781733040000,-711.1567208,0.00019044,2]
[425373043,1781733040000,-328.02963604,0.00019044,2]
[425373044,1781733040000,-630.7778438,0.00019044,2]
[425373046,1781733040000,-628.15601452,0.00019044,2]
[425373045,1781733040000,-607.539545,0.00019044,2]
[425373049,1781733040000,-424.61688311,0.00019044,2]
[425373050,1781733040000,-638.89648279,0.00019044,2]
[425373060,1781733040000,-500.0,0.00019178,2]
[425373057,1781733040000,-1453.42,0.00019178,2]
[425373058,1781733040000,-500.0,0.00019178,2]
[425373029,1781733040000,-500.0,0.00018904,2]
[425373047,1781733040000,-625.68546844,0.00019044,2]
[425373026,1781733040000,-500.0,0.00018904,2]
[425373007,1781733040000,-1000.0,0.000189,2]
[425373023,1781733040000,-500.0,0.00018904,2]
[425372993,1781733040000,-949.73827661,0.00018697,2]
[425372990,1781733040000,-500.0,0.0001863,2]
[425372991,1781733040000,-2602.54,0.0001863,2]
[425372992,1781733040000,-500.80932921,0.00018697,2]
[425373003,1781733040000,-479.17236209,0.00018697,2]
[425372995,1781733040000,-522.32977995,0.00018697,2]
[425372994,1781733040000,-558.48704059,0.00018697,2]
[425373006,1781733040000,-797.0,0.000188,2]
[425373004,1781733040000,-540.72305114,0.00018697,2]
[425372996,1781733040000,-528.57527692,0.00018697,2]
[425372997,1781733040000,-1285.73339896,0.00018697,2]
[425373000,1781733040000,-471.11701089,0.00018697,2]
[425373001,1781733040000,-469.26410133,0.00018697,2]
[425373027,1781733040000,-500.0,0.00018904,2]
[425372999,1781733040000,-455.65465875,0.00018697,2]
[425373053,1781733040000,-194.33681502,0.00019044,2]
[425373009,1781733040000,-1453.42,0.00018904,2]
[425373020,1781733040000,-384.24059063,0.00018904,2]
[425373022,1781733040000,-500.0,0.00018904,2]
[425373019,1781733040000,-500.0,0.00018904,2]
[425373021,1781733040000,-504.21,0.00018904,2]
[425373011,1781733040000,-500.0,0.00018904,2]
[425373008,1781733040000,-500.0,0.00018904,2]
[425373012,1781733040000,-500.0,0.00018904,2]
[425373013,1781733040000,-500.0,0.00018904,2]
[425373018,1781733040000,-500.0,0.00018904,2]
[425373014,1781733040000,-500.0,0.00018904,2]
[425373016,1781733040000,-500.0,0.00018904,2]
[425372998,1781733040000,-473.08338285,0.00018697,2]
[425373056,1781733040000,-500.0,0.00019178,2]
[425373002,1781733040000,-533.3675406,0.00018697,2]
[425373059,1781733040000,-500.0,0.00019178,2]
[425373087,1781733040000,-759.42443125,0.00019391,2]
[425373089,1781733040000,-782.10683555,0.00019391,2]
[425373091,1781733040000,-798.62060349,0.00019391,2]
[425373090,1781733040000,-888.94590099,0.00019391,2]
[425373096,1781733040000,-500.0,0.00019452,2]
[425373094,1781733040000,-500.0,0.00019452,2]
[425373095,1781733040000,-1453.42,0.00019452,2]
[425373097,1781733040000,-500.0,0.00019452,2]
[425373102,1781733040000,-500.0,0.00019452,2]
[425373100,1781733040000,-500.0,0.00019452,2]
[425373103,1781733040000,-504.21,0.00019452,2]
[425373101,1781733040000,-500.0,0.00019452,2]
[425373111,1781733040000,-500.0,0.00019452,2]
[425373106,1781733040000,-711.98,0.00019452,2]
[425373105,1781733040000,-500.0,0.00019452,2]
[425373112,1781733040000,-2602.54,0.00019452,2]
[425373108,1781733040000,-500.0,0.00019452,2]
[425373107,1781733040000,-500.0,0.00019452,2]
[425373109,1781733040000,-500.0,0.00019452,2]
[425373110,1781733040000,-500.0,0.00019452,2]
[425373114,1781733040000,-1453.42,0.00019726,2]
[425373113,1781733040000,-500.0,0.00019726,2]
[425373116,1781733040000,-500.0,0.00019726,2]
[425373115,1781733040000,-477.57,0.00019726,2]
[425373118,1781733040000,-500.0,0.00019726,2]
[425373120,1781733040000,-500.0,0.00019726,2]
[425373119,1781733040000,-500.0,0.00019726,2]
[425373117,1781733040000,-500.0,0.00019726,2]
[425373055,1781733040000,-864.0,0.00019176,2]
[425373099,1781733040000,-500.0,0.00019452,2]
[425373093,1781733040000,-1000.0,0.000194,2]
[425373104,1781733040000,-500.0,0.00019452,2]
[425373098,1781733040000,-500.0,0.00019452,2]
[425373092,1781733040000,-901.20508524,0.00019391,2]
[425373054,1781733040000,-180.0,0.00019123,3]
[425373062,1781733040000,-427.5633,0.00019178,2]
[425373072,1781733040000,-711.98,0.00019178,2]
[425373061,1781733040000,-430.632,0.00019178,2]
[425373063,1781733040000,-544.41,0.00019178,2]
[425373064,1781733040000,-500.0,0.00019178,2]
[425373073,1781733040000,-500.0,0.00019178,2]
[425373066,1781733040000,-500.0,0.00019178,2]
[425373051,1781733040000,-720.96406819,0.00019044,2]
[425373070,1781733040000,-340.36924812,0.00019178,2]
[425373065,1781733040000,-500.0,0.00019178,2]